bitfinex-derivatives/quotes_BTCF0:USTF0_20251028
["timestamp","ask_amount","ask_price","bid_price","bid_amount"]
[1761668884507,0.0045,115080.0,115070.0,0.98962382]
[1761668884709,0.0045,115080.0,115070.0,0.62882382]
[1761668884914,0.0045,115080.0,115070.0,0.98962382]
[1761668887308,0.0045,115080.0,115070.0,0.62882382]
[1761668887616,0.0045,115080.0,115070.0,0.98962382]
[1761668889620,0.3608,115110.0,115100.0,0.05822]
[1761668889918,0.3608,115110.0,115100.0,0.89053924]
[1761668889919,0.38363689,115110.0,115100.0,0.89053924]
[1761668890107,0.3608,115110.0,115100.0,0.89053924]
[1761668890418,0.36825602,115120.0,115110.0,0.1450969]
[1761668890616,0.41240045,115120.0,115110.0,0.32373742]
[1761668890812,0.41092602,115120.0,115110.0,0.05822]
[1761668891022,0.41092602,115120.0,115110.0,0.53825742]
[1761668892817,0.38957602,115120.0,115110.0,0.54025742]
[1761668893019,0.36825602,115120.0,115110.0,0.54025742]
[1761668893215,0.41092602,115120.0,115110.0,0.54025742]
[1761668894022,0.41092602,115120.0,115110.0,0.54878316]
[1761668895022,0.41092602,115120.0,115110.0,0.63566006]
[1761668895322,0.36825602,115120.0,115110.0,0.63566006]
[1761668895619,0.36825602,115120.0,115110.0,0.37014264]
[1761668895826,0.36825602,115120.0,115110.0,0.63566006]
[1761668897830,0.36825602,115120.0,115110.0,0.63826006]
[1761668898330,0.00745602,115120.0,115110.0,0.63826006]
[1761668900417,0.00745602,115120.0,115110.0,0.63566006]
[1761668900927,0.00745602,115120.0,115110.0,0.63826006]
[1761668903319,0.3608,115140.0,115130.0,0.0868617]
[1761668903524,0.3608,115140.0,115130.0,0.62503912]
[1761668903725,0.40347,115150.0,115140.0,0.1234942]
[1761668903923,0.04267,115150.0,115140.0,0.48712464]
[1761668904118,0.3653,115160.0,115140.0,0.40027044]
[1761668904334,0.40797,115160.0,115150.0,0.52947192]
[1761668905332,0.40797,115160.0,115150.0,0.53809121]
[1761668905824,0.3653,115160.0,115150.0,0.53809121]
[1761668906025,0.38212,115180.0,115170.0,0.1450483]
[1761668906230,0.04717,115200.0,115190.0,0.05822]
[1761668906430,0.04717,115200.0,115190.0,0.44274522]
[1761668906730,0.40797,115200.0,115190.0,0.27302]
[1761668906926,0.40797,115200.0,115190.0,0.44274522]
[1761668907120,0.40797,115200.0,115190.0,0.27302]
[1761668907319,0.41431,115200.0,115190.0,0.25904]
[1761668907527,0.41691,115200.0,115190.0,0.25904]
[1761668907921,0.41057,115200.0,115190.0,0.27302]
[1761668908224,0.40797,115200.0,115190.0,0.27302]
[1761668908425,0.40797,115200.0,115190.0,0.3598358]
[1761668908625,0.04717,115200.0,115190.0,0.7206358]
[1761668909034,0.04717,115200.0,115190.0,0.63382]
[1761668909827,0.04717,115200.0,115190.0,0.64247655]
[1761668910325,0.01344,115200.0,115190.0,0.2148]
[1761668910529,0.04402,115190.0,115180.0,0.41923]
[1761668910930,0.05822,115190.0,115180.0,0.04445]
[1761668911130,0.04402,115180.0,115170.0,0.05843]
[1761668911438,0.41376,115180.0,115170.0,0.25933]
[1761668911925,0.04402,115180.0,115170.0,0.27321]
[1761668912335,0.40482,115180.0,115170.0,0.27321]
[1761668912523,0.41376,115180.0,115170.0,0.27321]
[1761668913239,0.40482,115180.0,115170.0,0.27321]
[1761668913528,0.04402,115180.0,115170.0,0.27321]
[1761668915333,0.04402,115180.0,115170.0,0.3600414]
[1761668915928,0.04402,115190.0,115180.0,0.1007036]
[1761668916235,0.04402,115190.0,115180.0,0.5059536]
[1761668916429,0.40932,115200.0,115190.0,0.05833]
[1761668916634,0.43177228,115200.0,115190.0,0.27321]
[1761668917231,0.02695228,115200.0,115190.0,1.07630903]
[1761668917935,0.0045,115200.0,115190.0,1.07630903]
[1761668918135,0.05486,115200.0,115190.0,0.720826]
[1761668918431,0.05036,115190.0,115180.0,0.04445]
[1761668918632,0.05296,115190.0,115180.0,0.25937]
[1761668918829,0.04402,115190.0,115180.0,0.27325]
[1761668919735,0.40482,115190.0,115180.0,0.27325]
[1761668919937,0.42728912,115190.0,115180.0,0.27325]
[1761668920539,0.42728912,115190.0,115180.0,0.21492]
[1761668921133,0.42728912,115190.0,115180.0,0.23732]
[1761668921333,0.42728912,115190.0,115180.0,0.25937]
[1761668922141,0.42728912,115190.0,115180.0,0.23732]
[1761668922330,0.42728912,115190.0,115180.0,0.25937]
[1761668923740,0.42728912,115190.0,115180.0,0.21492]
[1761668924130,0.42728912,115190.0,115180.0,0.23732]
[1761668924530,0.42988912,115190.0,115180.0,0.25937]
[1761668924938,0.04402,115180.0,115170.0,0.05833]
[1761668925139,0.42988912,115180.0,115170.0,0.27321]
[1761668925734,0.44148912,115180.0,115170.0,0.27321]
[1761668926132,0.42988912,115180.0,115170.0,0.05833]
[1761668926328,0.42988912,115180.0,115170.0,0.27321]
[1761668926741,0.42988912,115180.0,115170.0,0.05833]
[1761668927043,0.04402,115170.0,115160.0,0.05843]
[1761668927243,0.44183864,115170.0,115160.0,0.04445]
[1761668927436,0.43923864,115170.0,115160.0,0.25933]
[1761668927632,0.43923864,115170.0,115160.0,0.27321]
[1761668928042,0.44183864,115170.0,115160.0,0.27321]
[1761668928238,0.44183864,115170.0,115160.0,0.25933]
[1761668928443,0.43923864,115170.0,115160.0,0.25933]
[1761668929245,0.04402,115160.0,115150.0,0.04445]
[1761668929434,0.06912864,115160.0,115150.0,0.25933]
[1761668929942,0.43626864,115160.0,115150.0,0.23728]
[1761668930439,0.43626864,115160.0,115150.0,0.23732]
[1761668930744,0.43626864,115160.0,115140.0,0.01395924]
[1761668930745,0.05036,115150.0,115140.0,7.924e-05]
[1761668930946,0.43626864,115150.0,115140.0,0.02247924]
[1761668931135,0.43626864,115150.0,115140.0,7.924e-05]
[1761668934450,0.05593,115130.0,115120.0,0.21492]
[1761668934753,0.43923864,115130.0,115120.0,0.21492]
[1761668934940,0.44183864,115130.0,115120.0,0.21492]
[1761668935143,0.80263864,115130.0,115120.0,0.21492]
[1761668935346,0.80272931,115130.0,115120.0,0.21492]
[1761668935550,0.04402,115110.0,115100.0,0.27329]
[1761668936251,0.04402,115110.0,115100.0,0.28204783]
[1761668937449,0.04402,115110.0,115100.0,0.27329]
[1761668938549,0.04402,115110.0,115100.0,0.27429]
[1761668939448,0.02145,115110.0,115100.0,0.27429]
[1761668939644,0.04347,115110.0,115100.0,0.27429]
[1761668940254,0.3608,115120.0,115110.0,0.02125]
[1761668940551,0.40506,115120.0,115110.0,0.05544]
[1761668941451,0.40506,115120.0,115110.0,0.05644]
[1761668941954,0.40506,115120.0,115110.0,0.06244]
[1761668943153,0.36089067,115130.0,115110.0,0.42052303]
[1761668943346,9.067e-05,115130.0,115120.0,0.27292]
[1761668943660,0.02233067,115130.0,115120.0,0.27032]
[1761668943952,0.02233067,115130.0,115120.0,0.63112]
[1761668944752,0.04435067,115130.0,115120.0,0.63112]
[1761668945256,0.04435067,115130.0,115120.0,0.63212]
[1761668945854,0.40515067,115130.0,115120.0,0.05644]
[1761668946049,0.41966067,115130.0,115120.0,0.04357]
[1761668946249,0.40775067,115130.0,115120.0,0.05644]
[1761668946649,0.41966067,115130.0,115120.0,0.04357]
[1761668947045,0.41966067,115130.0,115120.0,0.04957]
[1761668947447,0.40775067,115130.0,115120.0,0.06244]
[1761668947649,0.40775067,115130.0,115120.0,0.06044]
[1761668947960,0.40775067,115130.0,115120.0,0.05944]
[1761668948456,0.04435067,115130.0,115120.0,0.05944]
[1761668949253,0.04435067,115130.0,115120.0,0.05544]
[1761668949449,0.04435067,115130.0,115120.0,0.05944]
[1761668950860,0.02233067,115130.0,115120.0,0.05944]
[1761668951056,9.067e-05,115130.0,115120.0,0.42024]
[1761668951257,0.02239067,115130.0,115120.0,0.42024]
[1761668951452,9.067e-05,115130.0,115120.0,0.42024]
[1761668952558,9.067e-05,115130.0,115120.0,0.77572303]
[1761668953160,9.067e-05,115130.0,115120.0,0.78172303]
[1761668953464,9.067e-05,115130.0,115120.0,0.78432303]
[1761668954160,9.067e-05,115130.0,115120.0,0.78532303]
[1761668954857,9.067e-05,115130.0,115120.0,0.78272303]
[1761668955257,9.067e-05,115130.0,115120.0,0.78532303]
[1761668956867,9.067e-05,115130.0,115120.0,0.78272303]
[1761668957261,0.02239067,115130.0,115120.0,0.78532303]
[1761668957463,0.04460067,115130.0,115120.0,0.78272303]
[1761668958858,9.067e-05,115130.0,115120.0,0.78272303]
[1761668959060,9.067e-05,115130.0,115120.0,0.78532303]
[1761668961768,9.067e-05,115130.0,115120.0,0.77532303]
[1761668961968,9.067e-05,115130.0,115120.0,0.78132303]
[1761668962369,9.067e-05,115130.0,115120.0,0.78032303]
[1761668962558,9.067e-05,115130.0,115120.0,0.78132303]
[1761668963371,0.40531,115160.0,115150.0,0.0595]
[1761668963577,0.42777263,115160.0,115150.0,0.27414]
[1761668963775,0.06697263,115160.0,115150.0,0.27414]
[1761668964068,0.05611,115150.0,115140.0,0.0595]
[1761668964274,0.07857263,115150.0,115140.0,0.26042]
[1761668964474,0.08117263,115150.0,115140.0,0.04574]
[1761668964772,0.06957263,115150.0,115140.0,0.27418]
[1761668965172,0.43037263,115150.0,115140.0,0.27418]
[1761668965368,0.43037263,115150.0,115140.0,0.28018]
[1761668965876,0.43037263,115150.0,115140.0,0.28014]
[1761668966677,0.43037263,115150.0,115140.0,0.28114]
[1761668968975,0.42777263,115150.0,115140.0,0.28114]
[1761668969683,0.43037263,115150.0,115140.0,0.28014]
[1761668969876,0.42777263,115150.0,115140.0,0.28014]
[1761668970679,0.42777263,115150.0,115140.0,0.27414]
[1761668970980,0.42777263,115150.0,115140.0,0.27614]
[1761668971472,0.43937263,115150.0,115140.0,0.04774]
[1761668971680,1.30722039,115150.0,115140.0,0.02382]
[1761668971976,0.38326263,115150.0,115140.0,0.32498776]
[1761668972375,0.42818263,115150.0,115140.0,0.05974]
[1761668972973,0.06738263,115150.0,115140.0,0.05974]
[1761668973478,0.06738263,115150.0,115140.0,0.06174]
[1761668974874,0.42818263,115150.0,115140.0,0.06174]
[1761668975181,1.30237039,115150.0,115140.0,0.21856]
[1761668975877,1.30237039,115150.0,115140.0,0.24038]
[1761668976475,1.30237039,115150.0,115140.0,0.23838]
[1761668976684,1.30237039,115150.0,115140.0,0.02382]
[1761668977789,1.30237039,115150.0,115140.0,0.002]
[1761668978080,0.04492,115140.0,115130.0,0.25855]
[1761668978273,0.43712263,115140.0,115130.0,0.25855]
[1761668979871,0.70237039,115140.0,115130.0,0.006]
[1761668980071,0.43712263,115140.0,115130.0,0.02782]
[1761668980279,0.43712263,115140.0,115130.0,0.02182]
[1761668980481,0.43712263,115140.0,115130.0,0.04599]
[1761668980784,0.70237039,115140.0,115130.0,0.04599]
[1761668980983,0.70237039,115140.0,115130.0,0.002]
[1761668981384,0.70237039,115140.0,115130.0,0.02382]
[1761668982483,0.72237039,115140.0,115130.0,0.002]
[1761668982784,1.3256807,115140.0,115130.0,0.002]
[1761668983282,1.30237039,115140.0,115130.0,0.002]
[1761668983470,0.70237039,115140.0,115130.0,0.002]
[1761668983983,0.7256807,115140.0,115130.0,0.002]
[1761668985184,0.46043294,115140.0,115130.0,0.002]
[1761668985478,0.7256807,115140.0,115130.0,0.002]
[1761668985678,0.70237039,115140.0,115130.0,0.002]
[1761668985981,0.70237039,115140.0,115130.0,0.02158]
[1761668986190,1.51689039,115140.0,115130.0,0.02158]
[1761668986379,0.64904263,115140.0,115130.0,0.04353]
[1761668987178,0.64270263,115140.0,115130.0,0.05736]
[1761668989297,0.43712263,115140.0,115130.0,0.04353]
[1761668989885,0.70237039,115140.0,115130.0,0.04353]
[1761668990381,0.69977039,115140.0,115130.0,0.04353]
[1761668990983,0.70237039,115140.0,115130.0,0.04353]
[1761668991286,0.69977039,115140.0,115130.0,0.04353]
[1761668991684,0.77423205,115140.0,115130.0,0.04353]
[1761668991884,0.60437734,115140.0,115130.0,0.04353]
[1761668992278,0.59803734,115140.0,115130.0,0.05736]
[1761668992477,0.76789205,115140.0,115130.0,0.05736]
[1761668992983,0.59803734,115140.0,115130.0,0.05736]
[1761668995083,0.59803734,115140.0,115130.0,0.22721471]
[1761668999585,0.59803734,115140.0,115130.0,0.05736]
[1761668999790,0.59803734,115140.0,115130.0,0.22721471]
[1761669000087,0.42818263,115140.0,115130.0,0.22981471]
[1761669000285,0.59803734,115140.0,115130.0,0.22721471]
[1761669000883,0.60437734,115140.0,115130.0,0.04353]
[1761669001082,0.77683205,115140.0,115130.0,0.04353]
[1761669001390,0.60697734,115140.0,115130.0,0.04353]
[1761669001580,0.77423205,115140.0,115130.0,0.04353]
[1761669001780,0.60437734,115140.0,115130.0,0.04353]
[1761669002087,0.59803734,115140.0,115130.0,0.05691]
[1761669004787,0.77683205,115140.0,115120.0,0.01383]
[1761669004987,0.05673,115120.0,115110.0,0.44014471]
[1761669005290,0.23713734,115120.0,115110.0,0.44014471]
[1761669005491,0.24904734,115120.0,115110.0,0.44014471]
[1761669005892,0.23713734,115120.0,115110.0,0.80094471]
[1761669006088,0.53065471,115140.0,115130.0,0.02129]
[1761669006288,0.81209796,115140.0,115130.0,0.05618]
[1761669006588,0.81843796,115140.0,115130.0,0.0428]
[1761669006786,0.81209796,115140.0,115130.0,0.22603471]
[1761669008295,0.42774325,115140.0,115130.0,0.22603471]
[1761669009098,0.42774325,115140.0,115130.0,0.44043471]
[1761669009492,0.42774325,115140.0,115130.0,0.27318]
[1761669009696,0.42774325,115140.0,115130.0,0.44303471]
[1761669011400,0.59759796,115140.0,115130.0,0.44043471]
[1761669011602,0.04239,115130.0,115120.0,0.44174471]
[1761669011810,0.06461325,115130.0,115120.0,0.69846852]
[1761669012102,0.06461325,115130.0,115120.0,1.05926852]
[1761669012504,0.06461325,115130.0,115120.0,1.06186852]
[1761669013002,0.06461325,115130.0,115120.0,1.05926852]
[1761669015305,0.06461325,115130.0,115120.0,1.06186852]
[1761669016503,0.02222325,115130.0,115120.0,1.06186852]
[1761669016703,0.42532681,115140.0,115130.0,0.05738]
[1761669016903,0.42532681,115140.0,115130.0,0.22723471]
[1761669017601,0.42532681,115140.0,115130.0,0.22983471]
[1761669017908,0.02223681,115140.0,115130.0,0.48655092]
[1761669018097,0.02223681,115140.0,115130.0,1.08655092]
[1761669018604,0.02223681,115140.0,115130.0,1.44735092]
[1761669019197,0.40319,115150.0,115140.0,0.05738]
[1761669019402,0.42541972,115150.0,115140.0,0.61148942]
[1761669019602,0.59527443,115150.0,115140.0,0.27178]
[1761669019803,0.59527443,115150.0,115140.0,0.44163471]
[1761669020894,0.42541972,115150.0,115140.0,0.44163471]
[1761669021095,0.42541972,115150.0,115140.0,0.69834342]
[1761669021096,0.38302972,115150.0,115140.0,0.69834342]
[1761669021406,0.02222972,115150.0,115140.0,0.70094342]
[1761669021607,0.02222972,115150.0,115140.0,0.87079813]
[1761669021802,0.04239,115170.0,115160.0,0.05738]
[1761669022001,0.04333334,115170.0,115160.0,0.69832832]
[1761669022199,0.02222334,115170.0,115160.0,0.70092832]
[1761669022398,0.02222334,115170.0,115160.0,1.07051573]
[1761669023098,0.38191,115180.0,115170.0,0.05738]
[1761669023407,0.40319,115180.0,115170.0,0.31666611]
[1761669023600,0.40319,115180.0,115170.0,0.1442114]
[1761669023795,0.3608,115180.0,115170.0,0.31649213]
[1761669024098,0.23081,115200.0,115190.0,0.1441963]
[1761669024099,0.0045,115200.0,115190.0,0.1441963]
[1761669024305,0.0045,115200.0,115190.0,0.89199703]
[1761669025108,0.00442076,115200.0,115190.0,0.89199703]
[1761669025305,0.00442076,115200.0,115190.0,1.65907776]
[1761669025495,0.00182076,115200.0,115190.0,1.66167776]
[1761669025694,0.00182076,115200.0,115190.0,1.67753658]
[1761669025895,0.00182076,115200.0,115190.0,1.2355]
[1761669026100,0.00182076,115200.0,115190.0,0.41818]
[1761669026303,0.04421076,115200.0,115190.0,0.6329]
[1761669026514,0.04681076,115200.0,115190.0,0.6329]
[1761669026704,0.04681076,115200.0,115190.0,0.41818]
[1761669027013,0.00442076,115200.0,115190.0,0.41818]
[1761669027210,0.00442076,115200.0,115190.0,0.6329]
[1761669028201,0.00182076,115200.0,115190.0,0.6329]
[1761669028401,0.00182076,115200.0,115190.0,0.98812028]
[1761669029002,0.00442076,115200.0,115190.0,0.98812028]
[1761669029599,0.04725076,115200.0,115190.0,0.41818]
[1761669029810,0.40805076,115200.0,115190.0,0.05738]
[1761669030103,0.40805076,115200.0,115190.0,0.27206]
[1761669031219,0.41439076,115200.0,115190.0,0.23725]
[1761669031403,0.04452,115190.0,115180.0,0.0438]
[1761669031602,0.05643,115180.0,115170.0,0.0438]
[1761669031911,0.42243,115180.0,115170.0,0.23601]
[1761669032209,0.41983,115180.0,115170.0,0.25844]
[1761669032404,0.42243,115180.0,115170.0,0.25844]
[1761669032604,0.41983,115180.0,115170.0,0.27237]
[1761669032804,0.41983,115180.0,115170.0,0.25844]
[1761669033004,0.41983,115180.0,115170.0,0.27237]
[1761669033204,0.40792,115180.0,115170.0,0.27237]
[1761669033405,0.0026,115180.0,115170.0,0.62759028]
[1761669033610,0.3836,115190.0,115180.0,0.05773]
[1761669033810,0.40532,115190.0,115180.0,0.05773]
[1761669034012,0.04452,115180.0,115170.0,0.27237]
[1761669034317,0.40792,115180.0,115170.0,0.27637]
[1761669034707,0.40792,115180.0,115170.0,0.27237]
[1761669034909,0.40792,115180.0,115170.0,0.27245]
[1761669035405,0.40792,115180.0,115170.0,0.27645]
[1761669035805,0.41983,115180.0,115170.0,0.004]
[1761669036115,0.82854345,115180.0,115170.0,0.004]
[1761669036515,0.80854345,115180.0,115170.0,0.004]
[1761669036711,0.45332317,115180.0,115170.0,0.004]
[1761669036920,0.43111463,115180.0,115170.0,0.004]
[1761669037419,0.45332739,115180.0,115170.0,0.004]
[1761669037617,0.80854767,115180.0,115170.0,0.004]
[1761669037922,0.04452,115160.0,115150.0,0.27256214]
[1761669038224,0.40792,115160.0,115150.0,0.27256214]
[1761669042914,0.04712,115160.0,115150.0,0.27256214]
[1761669043115,0.40792,115160.0,115150.0,0.27256214]
[1761669044121,0.3634,115160.0,115150.0,0.27256214]
[1761669044418,0.02513107,115200.0,115190.0,0.05773]
[1761669044725,0.0661947,115240.0,115220.0,0.05528]
[1761669044726,0.03096901,115230.0,115220.0,0.05528]
[1761669045019,0.03546901,115240.0,115230.0,0.0438]
[1761669045206,0.02663483,115240.0,115230.0,0.39902028]
[1761669045410,0.02663483,115240.0,115230.0,0.40162028]
[1761669045911,0.01981868,115270.0,115260.0,0.0438]
[1761669046116,0.0240947,115290.0,115280.0,0.0355]
[1761669046318,0.0045,115320.0,115280.0,0.0355]
[1761669046319,0.10796572,115310.0,115280.0,0.66604808]
[1761669046513,0.04083,115360.0,115300.0,0.35522028]
[1761669046718,0.36427084,115360.0,115350.0,0.35522028]
[1761669047020,0.03633,115320.0,115300.0,0.13077908]
[1761669047220,0.01353,115300.0,115290.0,0.15469623]
[1761669047412,0.00353,115320.0,115290.0,0.63934121]
[1761669047607,0.01353,115340.0,115330.0,0.0867107]
[1761669047825,0.04959331,115340.0,115330.0,0.2511689]
[1761669048117,0.36700605,115340.0,115330.0,0.3099743]
[1761669048420,0.36700605,115340.0,115330.0,0.26402653]
[1761669048613,0.36700605,115340.0,115330.0,0.0934143]
[1761669048808,0.36700605,115340.0,115330.0,0.65072472]
[1761669049111,0.36700605,115340.0,115330.0,0.07430443]
[1761669049820,0.06585,115340.0,115330.0,0.07430443]
[1761669050012,0.36757084,115340.0,115330.0,0.07430443]
[1761669050316,0.1492396,115360.0,115330.0,0.08198444]
[1761669050508,0.35404084,115350.0,115340.0,0.27925482]
[1761669050707,0.35404084,115350.0,115340.0,0.32672135]
[1761669050708,0.43293794,115350.0,115340.0,0.32672135]
[1761669050908,0.80153794,115350.0,115340.0,0.04746653]
[1761669051112,0.80413794,115350.0,115340.0,0.02457882]
[1761669051721,0.71744084,115350.0,115340.0,0.02457882]
[1761669051917,0.33232084,115350.0,115340.0,0.7792591]
[1761669052220,0.44073784,115350.0,115340.0,0.02457882]
[1761669052522,0.80153784,115350.0,115340.0,0.02857882]
[1761669052711,0.44073784,115350.0,115340.0,0.02857882]
[1761669052908,0.80153784,115350.0,115340.0,0.02857882]
[1761669053213,0.80153784,115350.0,115290.0,0.44251121]
[1761669053214,0.05805,115300.0,115290.0,0.44251121]
[1761669053415,0.04413,115300.0,115290.0,0.41544525]
[1761669053608,0.04452,115310.0,115300.0,0.03866]
[1761669053814,0.3608,115320.0,115310.0,0.03866]
[1761669054009,0.05805,115300.0,115290.0,0.39388028]
[1761669054215,0.02133,115300.0,115290.0,0.99476435]
[1761669054419,0.3608,115350.0,115340.0,0.03866]
[1761669054722,0.447497,115350.0,115340.0,0.25734]
[1761669054918,0.0867063,115340.0,115310.0,0.80274438]
[1761669055219,0.0867063,115340.0,115330.0,0.219]
[1761669055220,0.3608,115340.0,115330.0,0.219]
[1761669056022,0.0867128,115330.0,115310.0,0.71602028]
[1761669056321,0.4475196,115320.0,115300.0,0.3608]
[1761669056519,0.4475196,115320.0,115310.0,0.21952]
[1761669056715,0.3608,115320.0,115310.0,0.3088471]
[1761669057024,0.3608,115330.0,115310.0,0.6696471]
[1761669057324,0.0867074,115340.0,115320.0,0.22208]
[1761669057626,0.3608,115330.0,115320.0,0.3087995]
[1761669057816,0.0867045,115340.0,115320.0,0.58028]
[1761669058022,0.4475077,115340.0,115330.0,0.21984]
[1761669058517,0.4501077,115340.0,115330.0,0.21984]
[1761669058715,0.0867196,115320.0,115310.0,0.003]
[1761669058926,0.8083196,115320.0,115310.0,0.003]
[1761669059118,0.8109196,115320.0,115310.0,0.003]
[1761669059322,0.0867572,115270.0,115260.0,0.02148808]
[1761669059618,0.0783062,115260.0,115250.0,0.00433821]
[1761669059821,0.0867609,115270.0,115250.0,0.00433821]
[1761669060121,0.3608,115260.0,115250.0,0.35849318]
[1761669060321,0.3608,115280.0,115260.0,0.0867647]
[1761669060525,0.4475375,115300.0,115280.0,0.0867491]
[1761669060721,0.3608,115310.0,115280.0,0.47210497]
[1761669061024,0.3608,115300.0,115290.0,0.27308127]
[1761669061212,0.7216,115300.0,115290.0,0.26741927]
[1761669061416,0.3608,115300.0,115290.0,0.26741927]
[1761669061719,0.3608,115300.0,115290.0,0.27596284]
[1761669061917,0.3608,115300.0,115290.0,0.26741927]
[1761669062318,0.3648,115300.0,115290.0,0.26741927]
[1761669062816,0.3648,115300.0,115290.0,0.27497374]
[1761669063017,0.35916049,115300.0,115290.0,0.04721465]
[1761669063516,0.35916049,115300.0,115290.0,0.02455587]
[1761669063517,1.31438077,115300.0,115290.0,0.02455587]
[1761669063924,1.31438077,115300.0,115270.0,0.24277878]
[1761669063925,0.71438077,115300.0,115270.0,0.24277878]
[1761669064125,0.7216,115280.0,115270.0,0.29755502]
[1761669064423,0.7216,115280.0,115270.0,0.27487012]
[1761669064618,0.7216,115280.0,115270.0,0.29060002]
[1761669064817,0.7216,115280.0,115270.0,0.2748954]
[1761669065012,0.7216,115280.0,115270.0,0.32084317]
[1761669065218,0.3608,115290.0,115270.0,0.40368289]
[1761669065522,0.3608,115300.0,115280.0,0.47222163]
[1761669065722,0.3608,115300.0,115290.0,0.27297609]
[1761669065921,0.3608,115310.0,115300.0,0.0867345]
[1761669066223,0.3608,115310.0,115300.0,0.10639541]
[1761669066428,0.3608,115310.0,115300.0,0.27101932]
[1761669066625,0.3608,115310.0,115300.0,0.29371356]
[1761669066930,0.3608,115310.0,115300.0,0.29371082]
[1761669067822,0.3608,115310.0,115300.0,0.27101932]
[1761669068716,0.3608,115310.0,115300.0,0.29371082]
[1761669069125,0.3608,115310.0,115300.0,0.38044542]
[1761669069524,0.3608,115320.0,115300.0,0.6489311]
[1761669069817,0.3608,115310.0,115300.0,0.6489311]
[1761669070229,0.3608,115310.0,115300.0,0.67918285]
[1761669070526,0.3608,115320.0,115300.0,1.12931525]
[1761669070730,0.3608,115320.0,115310.0,0.49757094]
[1761669070936,0.3608,115320.0,115310.0,0.54843026]
[1761669071229,0.3608,115330.0,115310.0,0.57160452]
[1761669071531,0.3608,115330.0,115320.0,0.3597245]
[1761669071723,0.3608,115340.0,115320.0,0.41318382]
[1761669072032,0.3608,115340.0,115330.0,0.35522028]
[1761669072327,0.3608,115350.0,115330.0,0.10390602]
[1761669072529,0.3608,115350.0,115340.0,0.72350189]
[1761669072733,0.3653,115360.0,115340.0,1.13776121]
[1761669072734,0.0045,115360.0,115340.0,1.13776121]
[1761669072934,0.0045,115360.0,115350.0,0.13490989]
[1761669073120,0.0045,115360.0,115350.0,0.54873537]
[1761669073320,0.3608,115390.0,115370.0,0.0866792]
[1761669073519,0.3608,115390.0,115380.0,0.60599455]
[1761669073724,0.3608,115390.0,115380.0,0.28815533]
[1761669073922,0.3634,115390.0,115380.0,0.28815533]
[1761669074230,0.0026,115390.0,115380.0,0.30338246]
[1761669074529,0.3653,115400.0,115380.0,0.30598246]
[1761669074724,0.0045,115400.0,115390.0,0.41907889]
[1761669074921,0.3608,115410.0,115390.0,0.39520134]
[1761669075128,0.3608,115410.0,115400.0,0.06100456]
[1761669075322,0.94192,115410.0,115400.0,0.09838562]
[1761669075529,0.94452,115410.0,115400.0,0.0703503]
[1761669075723,1.54192,115410.0,115400.0,0.02193225]
[1761669075924,0.94452,115410.0,115400.0,0.02193225]
[1761669076124,0.7242,115410.0,115400.0,0.02193225]
[1761669076427,0.94448,115410.0,115400.0,0.02193225]
[1761669076629,0.94448,115410.0,115400.0,0.06779878]
[1761669076836,1.89970028,115410.0,115400.0,0.0983807]
[1761669077133,1.89970028,115410.0,115400.0,0.06779878]
[1761669077332,1.3242,115410.0,115400.0,0.06779878]
[1761669077526,1.3242,115410.0,115400.0,0.02193225]
[1761669077527,0.7216,115410.0,115400.0,0.02193225]
[1761669078328,0.7216,115410.0,115400.0,0.06777808]
[1761669078534,0.94456,115410.0,115400.0,0.06777808]
[1761669078830,1.33718028,115410.0,115400.0,0.04990182]
[1761669079134,1.33978028,115410.0,115400.0,0.07283221]
[1761669079428,1.95718028,115410.0,115400.0,0.03966264]
[1761669079636,1.35978028,115410.0,115400.0,0.03966264]
[1761669079838,1.45718028,115410.0,115390.0,0.03056957]
[1761669080141,0.71862028,115400.0,115380.0,0.04584583]
[1761669080333,0.3608,115390.0,115380.0,0.04584583]
[1761669080540,0.58112,115390.0,115380.0,0.04584508]
[1761669081031,0.58112,115390.0,115380.0,0.05104508]
[1761669081438,0.58112,115390.0,115380.0,0.04584508]
[1761669081827,0.3608,115390.0,115380.0,0.05104508]
[1761669082030,0.58108,115390.0,115370.0,0.04584508]
[1761669082231,0.3634,115380.0,115370.0,0.04584508]
[1761669082427,1.31602028,115380.0,115360.0,0.04584508]
[1761669082736,0.58108,115370.0,115360.0,0.04584508]
[1761669083034,0.58108,115370.0,115350.0,0.04584508]
[1761669083035,0.58368,115370.0,115350.0,0.04584508]
[1761669083240,0.3608,115360.0,115350.0,0.04584508]
[1761669083828,0.58104,115360.0,115350.0,0.04584508]
[1761669084339,0.95886028,115360.0,115350.0,0.04884508]
[1761669084643,0.60364,115360.0,115350.0,0.04884508]
[1761669084832,0.95886028,115360.0,115350.0,0.04584508]
[1761669085028,0.95886028,115360.0,115350.0,0.04684508]
[1761669085429,0.97886028,115360.0,115350.0,0.001]
[1761669085826,0.88811038,115360.0,115350.0,0.001]
[1761669086133,0.84811038,115360.0,115350.0,0.001]
[1761669086433,0.85811038,115360.0,115350.0,0.001]
[1761669086852,0.3608,115360.0,115350.0,0.001]
[1761669087039,0.581,115360.0,115340.0,0.0052]
[1761669087236,0.581,115360.0,115330.0,0.27400558]
[1761669087237,0.3608,115350.0,115330.0,0.27400558]
[1761669087540,0.3556,115350.0,115330.0,0.3111662]
[1761669087739,0.3556,115350.0,115340.0,0.0026]
[1761669088636,0.3556,115350.0,115340.0,0.26707038]
[1761669088834,0.3556,115350.0,115340.0,0.0026]
[1761669089242,0.3556,115350.0,115340.0,0.26707038]
[1761669089544,0.3608,115360.0,115340.0,0.26707038]
[1761669089839,0.3608,115360.0,115350.0,0.26707038]
[1761669090046,0.3608,115360.0,115350.0,0.22264]
[1761669090539,0.3608,115360.0,115350.0,0.26447038]
[1761669090735,0.3608,115360.0,115350.0,0.26707038]
[1761669090946,0.3608,115360.0,115340.0,0.48447038]
[1761669091137,0.3608,115350.0,115340.0,0.22]
[1761669091940,0.3608,115360.0,115340.0,0.24146475]
[1761669092137,0.3608,115350.0,115340.0,0.50593513]
[1761669092647,0.3608,115350.0,115340.0,0.24142475]
[1761669092838,0.3608,115350.0,115340.0,0.50589513]
[1761669093042,0.3608,115360.0,115340.0,0.50849513]
[1761669093339,0.3608,115350.0,115340.0,0.28726983]
[1761669093539,0.3608,115360.0,115340.0,0.55174021]
[1761669093943,0.3608,115360.0,115340.0,0.91254021]